bitfinex-derivatives/quotes_ETHF0:USTF0_20250323
["timestamp","ask_amount","ask_price","bid_price","bid_amount"]
[1742736783093,2.92546,2018.4,2018.3,0.9985455]
[1742736783495,2.92546,2018.4,2018.3,2.2660455]
[1742736783999,1.9344,2018.4,2018.3,2.2660455]
[1742736785197,2.92546,2018.4,2018.3,2.2660455]
[1742736786503,6.13326,2018.4,2018.3,0.0074355]
[1742736786701,9.34626,2018.4,2018.3,0.0074355]
[1742736787094,6.13846,2018.4,2018.3,1.2747355]
[1742736787401,9.34626,2018.4,2018.3,1.2747355]
[1742736789597,9.34626,2018.4,2018.3,0.0074355]
[1742736791795,9.34626,2018.4,2018.3,1.2820355]
[1742736792197,9.34626,2018.4,2018.3,2.2731455]
[1742736792402,9.34626,2018.4,2018.3,1.2820355]
[1742736797913,9.33526,2018.4,2018.3,0.0074355]
[1742736799207,9.33526,2018.4,2018.3,1.3201355]
[1742736800413,9.33526,2018.4,2018.3,2.3112455]
[1742736800613,1.2889,2018.4,2018.3,2.3112455]
[1742736801119,0.99101,2018.5,2018.4,0.99105]
[1742736801317,0.99101,2018.5,2018.4,2.36365]
[1742736801709,2.34271,2018.5,2018.4,2.36365]
[1742736802019,4.19871,2018.7,2018.6,0.99096]
[1742736802221,5.55041,2018.7,2018.6,0.99096]
[1742736802716,5.55041,2018.7,2018.6,1.69166]
[1742736803408,3.2078,2018.7,2018.6,1.69166]
[1742736803618,0.0074355,2018.8,2018.7,0.99091]
[1742736803817,0.0074355,2018.8,2018.7,3.00911]
[1742736804214,0.0074355,2018.8,2018.7,6.21511]
[1742736804414,0.0074355,2018.8,2018.7,6.85754321]
[1742736804913,0.0074355,2018.8,2018.7,6.21511]
[1742736805311,0.0074355,2018.8,2018.7,6.85716981]
[1742736806318,0.0074355,2018.8,2018.7,6.21511]
[1742736806913,6.4148,2019.4,2019.2,0.99063]
[1742736807112,1.3906,2019.3,2019.2,0.99063]
[1742736807618,3.2078,2019.4,2019.3,0.99062]
[1742736808110,4.6026,2019.7,2019.6,0.99047]
[1742736808316,1.3906,2019.7,2019.6,0.99047]
[1742736809516,3.2078,2019.8,2019.7,0.99042]
[1742736809727,1.3372355,2019.9,2019.8,0.99037]
[1742736811312,2.3275555,2019.9,2019.7,0.99039]
[1742736811518,1.3372355,2019.9,2019.7,0.99041]
[1742736811720,1.6663755,2019.9,2019.8,0.99037]
[1742736812521,0.6760355,2019.9,2019.7,0.9904]
[1742736813212,1.6663755,2019.9,2019.7,0.9904]
[1742736813415,0.0074355,2019.9,2019.8,1.66737]
[1742736815124,0.9977555,2019.9,2019.8,1.66737]
[1742736815319,0.0074355,2019.9,2019.8,1.66737]
[1742736815619,0.99042,2019.7,2019.5,0.99049]
[1742736815924,1.3172,2019.6,2019.5,0.99049]
[1742736817522,2.30767,2019.6,2019.4,0.0074355]
[1742736818023,1.3172,2019.6,2019.5,0.99052]
[1742736818422,1.3172,2019.6,2019.5,1.66832]
[1742736819418,0.99039,2019.8,2019.5,0.6778]
[1742736819616,1.64122,2019.7,2019.6,0.99043]
[1742736820013,0.6508,2019.7,2019.6,0.99043]
[1742736820822,1.64122,2019.7,2019.6,0.99043]
[1742736821927,1.64124,2019.7,2019.4,0.0074355]
[1742736822227,0.6508,2019.7,2019.6,0.99047]
[1742736824132,1.64122,2019.7,2019.6,0.99047]
[1742736824326,0.6508,2019.7,2019.6,0.99047]
[1742736824727,0.6844,2019.8,2019.7,0.99042]
[1742736825421,2.0508,2019.8,2019.7,0.99042]
[1742736825929,2.0508,2019.8,2019.7,2.27322]
[1742736826529,0.0074355,2019.9,2019.8,0.99037]
[1742736826828,1.3738355,2019.9,2019.8,2.27317]
[1742736828125,5.5e-06,2019.9,2019.8,2.27317]
[1742736832429,5.5e-06,2019.9,2019.8,5.48817]
[1742736833426,1.3818055,2019.9,2019.8,5.48817]
[1742736834032,5.5e-06,2019.9,2019.8,5.48817]
[1742736835736,5.5e-06,2019.9,2019.8,6.1281162]
[1742736837446,5.5e-06,2019.9,2019.8,2.9131162]
[1742736837640,5.5e-06,2019.9,2019.8,6.1281162]
[1742736838035,5.5e-06,2019.9,2019.8,2.9131162]
[1742736838240,5.5e-06,2019.9,2019.8,0.99037]
[1742736838439,1.3172055,2019.9,2019.8,0.99037]
[1742736838647,1.3172055,2019.9,2019.7,4.19819]
[1742736838838,0.99042,2019.7,2019.4,3.2152355]
[1742736839038,2.30767,2019.6,2019.5,0.99052]
[1742736839244,1.3172,2019.6,2019.5,0.99052]
[1742736840145,2.30767,2019.6,2019.5,0.99052]
[1742736840352,1.3172,2019.6,2019.5,0.99052]
[1742736840741,1.3172,2019.6,2019.5,2.35132]
[1742736841446,1.3172,2019.6,2019.5,0.99052]
[1742736841841,2.30771,2019.6,2019.4,0.0074355]
[1742736842047,2.30771,2019.6,2019.5,0.99052]
[1742736842351,1.3172,2019.6,2019.5,0.99052]
[1742736842854,4.5432,2019.6,2019.5,0.99052]
[1742736843046,4.5422,2019.6,2019.5,0.99052]
[1742736843748,1.3172,2019.6,2019.5,0.99052]
[1742736843955,1.3172,2019.6,2019.5,2.31462]
[1742736845455,7.4251455,2019.9,2019.8,0.99037]
[1742736845753,6.4348055,2019.9,2019.8,0.99037]
[1742736846155,8.7731255,2019.9,2019.8,0.99037]
[1742736846456,4.5558055,2019.9,2019.8,0.99037]
[1742736848052,1.3480055,2019.9,2019.8,0.99037]
[1742736848752,1.3480055,2019.9,2019.8,2.29337]
[1742736850352,1.3480055,2019.9,2019.8,0.99037]
[1742736851655,2.3383255,2019.9,2019.8,0.99037]
[1742736851955,2.3383255,2019.9,2019.7,3.2078]
[1742736851956,1.3480055,2019.9,2019.7,3.2078]
[1742736852259,0.99047,2019.7,2019.4,0.0074355]
[1742736852461,1.9892,2019.6,2019.5,0.99047]
[1742736854256,2.97967,2019.6,2019.5,0.99047]
[1742736854851,1.9892,2019.6,2019.4,0.9979755]
[1742736855159,2.31522,2019.5,2019.4,0.9979755]
[1742736856461,2.31522,2019.5,2019.4,0.0074355]
[1742736856659,0.99062,2019.3,2019.2,40.8]
[1742736856856,1.9869,2019.4,2019.3,0.99062]
[1742736857651,1.3247,2019.4,2019.3,5.47202]
[1742736857960,1.3247,2019.4,2019.3,46.27202]
[1742736858457,0.6609,2019.6,2019.5,0.99052]
[1742736858652,0.6579,2019.7,2019.6,0.99047]
[1742736858854,1.3416,2019.7,2019.6,0.99047]
[1742736859851,1.3416,2019.7,2019.6,2.26407]
[1742736860253,1.364,2019.8,2019.7,0.99042]
[1742736860455,5.5e-06,2019.9,2019.7,0.99042]
[1742736860456,5.5e-06,2019.9,2019.8,0.99037]
[1742736860962,5.5e-06,2019.9,2019.8,2.27907]
[1742736861862,5.5e-06,2019.9,2019.6,3.2078]
[1742736862055,0.9904,2019.8,2019.7,0.99041]
[1742736862363,1.2822055,2019.9,2019.6,1.2887]
[1742736862552,1.2822055,2019.9,2019.8,0.99037]
[1742736864157,2.2725255,2019.9,2019.8,0.99037]
[1742736864363,1.2822055,2019.9,2019.8,0.99037]
[1742736864959,2.2725255,2019.9,2019.7,2.28399]
[1742736865262,0.6399,2019.8,2019.7,0.99042]
[1742736865664,1.9351,2019.8,2019.7,2.28402]
[1742736866765,1.9351,2019.8,2019.7,0.99042]
[1742736867162,0.99042,2019.7,2019.6,3.2078]
[1742736867363,1.9399,2019.7,2019.6,4.19827]
[1742736868264,5.5e-06,2019.9,2019.8,0.99037]
[1742736868462,1.2854055,2019.9,2019.8,0.99037]
[1742736868865,1.2854055,2019.9,2019.8,1.68287]
[1742736874570,2.2757255,2019.9,2019.8,1.68287]
[1742736874761,1.2854055,2019.9,2019.8,1.68287]
[1742736875267,1.2854055,2019.9,2019.8,0.99037]
[1742736877262,5.5e-06,2019.9,2019.8,0.99037]
[1742736877572,5.5e-06,2019.9,2019.8,4.22437]
[1742736878859,1.3429055,2019.9,2019.8,4.22437]
[1742736879469,5.5e-06,2019.9,2019.8,4.22437]
[1742736882964,5.5e-06,2019.9,2019.8,45.02437]
[1742736883162,5.5e-06,2019.9,2019.8,4.22437]
[1742736884074,5.5e-06,2019.9,2019.8,5.52777]
[1742736884783,1.2703055,2019.9,2019.8,2.29377]
[1742736892078,1.2703055,2019.9,2019.8,0.99037]
[1742736892580,1.2703055,2019.9,2019.8,2.36247]
[1742736897578,5.5e-06,2019.9,2019.8,2.36247]
[1742736898374,5.5e-06,2019.9,2019.8,3.0499746]
[1742736898975,5.5e-06,2019.9,2019.8,3.69175568]
[1742736901287,5.5e-06,2019.9,2019.8,3.00425108]
[1742736901470,5.5e-06,2019.9,2019.8,3.6917999]
[1742736901886,5.5e-06,2019.9,2019.8,3.6917633]
[1742736903284,5.5e-06,2019.9,2019.8,3.69161346]
[1742736905286,5.5e-06,2019.9,2019.8,3.69152939]
[1742736905685,5.5e-06,2019.9,2019.8,3.00425108]
[1742736905890,1.4023055,2019.9,2019.8,6.22425108]
[1742736906083,1.4023055,2019.9,2019.8,3.00425108]
[1742736906285,1.4023055,2019.9,2019.8,6.22525108]
[1742736907188,5.5e-06,2019.9,2019.8,6.91264909]
[1742736909494,5.5e-06,2019.9,2019.8,6.91247507]
[1742736913292,5.5e-06,2019.9,2019.8,6.91238212]
[1742736915889,5.5e-06,2019.9,2019.8,6.91229546]
[1742736916082,5.5e-06,2019.9,2019.8,6.27051438]
[1742736917184,5.5e-06,2019.9,2019.8,6.91184614]
[1742736917389,5.5e-06,2019.9,2019.8,6.91185858]
[1742736918287,0.6426055,2020.3,2020.2,0.99017]
[1742736918592,0.24609322,2020.4,2020.3,0.99013]
[1742736919087,0.99013,2020.3,2020.2,4.19796]
[1742736919391,0.24609322,2020.4,2020.2,3.2078]
[1742736919590,0.24609322,2020.4,2020.2,4.19795]
[1742736919784,1.23620322,2020.4,2020.2,4.19795]
[1742736919985,1.23620322,2020.4,2020.3,0.99013]
[1742736921592,3.22960322,2020.4,2020.3,0.99013]
[1742736921794,3.22960322,2020.4,2020.2,0.99013]
[1742736921994,1.3576,2020.3,2020.2,0.99013]
[1742736922701,2.34773,2020.3,2020.2,0.99013]
[1742736926099,2.34773,2020.3,2020.2,0.99017]
[1742736926300,1.3576,2020.3,2020.1,0.9902]
[1742736926507,2.36347,2020.2,2020.1,0.9902]
[1742736926904,1.3733,2020.2,2020.1,0.9902]
[1742736927106,2.36347,2020.2,2020.1,0.9902]
[1742736929014,1.3733,2020.2,2020.1,0.9902]
[1742736930411,0.99022,2020.1,2020.0,0.9976755]
[1742736930614,6.33552,2020.1,2019.7,0.9904]
[1742736930814,6.33552,2020.1,2019.8,0.99037]
[1742736930815,0.99036,2019.9,2019.8,0.99037]
[1742736931215,2.28496,2019.9,2019.8,0.99037]
[1742736931415,2.28496,2019.9,2019.5,44.61799]
[1742736931416,0.99037,2019.8,2019.7,0.99038]
[1742736931608,2.28497,2019.8,2019.7,0.99038]
[1742736932417,0.99042,2019.7,2019.6,0.99043]
[1742736932612,2.28502,2019.7,2019.6,0.99043]
[1742736934421,1.2946,2019.7,2019.6,0.99043]
[1742736935216,2.28502,2019.7,2019.6,0.99043]
[1742736936320,1.2946,2019.7,2019.6,0.99043]
[1742736937214,1.2946,2019.7,2019.5,43.1764255]
[1742736937426,6.35419,2019.6,2019.2,0.99064]
[1742736937620,6.35419,2019.6,2019.0,1.2799]
[1742736937621,0.99071,2019.1,2019.0,1.2799]
[1742736937813,4.2017,2019.2,2019.0,0.99075]
[1742736938009,0.6731,2019.1,2019.0,0.99075]
[1742736938321,1.9794,2019.1,2019.0,0.99075]
[1742736938621,2.97011,2019.1,2019.0,0.99075]
[1742736938810,1.9794,2019.1,2019.0,0.99075]
[1742736939121,2.97013,2019.1,2018.9,41.79079]
[1742736939321,2.29706,2019.0,2018.9,40.8]
[1742736939513,1.3063,2019.0,2018.9,41.79081]
[1742736940225,1.3063,2019.0,2018.9,0.99081]
[1742736940719,2.29707,2019.0,2018.8,42.43117697]
[1742736940911,0.99081,2018.9,2018.8,41.79577697]
[1742736941110,1.2853,2018.9,2018.8,0.99581697]
[1742736941323,0.6731,2019.1,2019.0,0.99076]
[1742736941623,3.8831,2019.1,2019.0,0.99076]
[1742736942120,4.87381,2019.1,2018.9,1.64527]
[1742736942321,1.66381,2019.1,2018.9,1.64527]
[1742736942521,1.66381,2019.1,2019.0,0.99076]
[1742736942522,3.8831,2019.1,2019.0,0.99076]
[1742736943018,0.99081,2018.9,2018.8,0.00495697]
[1742736943219,7.40961,2018.9,2018.8,0.00495697]
[1742736943419,2.4773,2018.7,2018.2,1.68481]
[1742736943623,0.99107,2018.4,2018.2,0.6937]
[1742736943922,0.99107,2018.4,2018.2,1.68482]
[1742736944118,2.34471,2018.3,2018.2,0.6937]
[1742736944318,3.00191,2018.3,2018.2,0.6937]
[1742736944518,0.99116,2018.2,2018.1,40.8]
[1742736944718,2.34476,2018.2,2018.1,40.8]
[1742736944913,2.34476,2018.2,2018.0,0.6937]
[1742736944914,0.9912,2018.1,2018.0,0.6937]
[1742736945123,2.3448,2018.1,2018.0,0.6937]
[1742736945623,0.99125,2018.0,2017.9,3.2078]
[1742736945925,0.99139,2017.8,2017.5,4.19928]
[1742736946224,2.3196,2017.7,2017.6,40.8]
[1742736946627,2.3196,2017.7,2017.5,3.2078]
[1742736946814,1.3282,2017.6,2017.5,3.2078]
[1742736947018,0.6464,2017.8,2017.5,3.2078]
[1742736947230,2.31962,2017.7,2017.5,4.19929]
[1742736949129,1.3282,2017.7,2017.5,3.2078]
[1742736949329,0.99145,2017.6,2017.5,3.2078]
[1742736949730,1.3282,2017.7,2017.5,3.2078]
[1742736950030,0.99145,2017.6,2017.5,3.2078]
[1742736950622,0.9915,2017.5,2017.4,40.8]
[1742736951723,1.3234,2017.6,2017.4,40.8]
[1742736952034,2.31487,2017.6,2017.4,40.8]
[1742736952520,2.31487,2017.6,2017.4,41.79155]
[1742736952724,4.536,2017.8,2017.4,41.79151]
[1742736952930,0.99146,2017.6,2017.5,0.6598]
[1742736953925,0.99146,2017.6,2017.5,1.6513]
[1742736954127,2.36724,2017.7,2017.5,0.6598]
[1742736954323,0.6464,2017.8,2017.5,0.6598]
[1742736954527,3.8654,2017.8,2017.7,0.9914]
[1742736954727,4.85675,2017.8,2017.7,0.9914]
[1742736954928,2.97055,2017.8,2017.7,0.9914]
[1742736955328,1.9792,2017.8,2017.7,0.9914]
[1742736955734,4.20934,2017.9,2017.8,0.99135]
[1742736955927,4.2093,2017.9,2017.8,0.99135]
[1742736956427,1.3328,2018.0,2017.9,0.9913]
[1742736956737,0.99128,2018.0,2017.9,0.9913]
[1742736957233,2.32408,2018.0,2017.9,0.9913]
[1742736958935,0.9913,2017.9,2017.8,2.32921]
[1742736960022,2.32408,2018.0,2017.9,0.9913]
[1742736960228,2.32408,2018.0,2017.9,1.3616]
[1742736960423,2.32408,2018.0,2017.9,2.3529]
[1742736961524,1.3328,2018.0,2017.9,2.3529]
[1742736961929,2.32405,2018.0,2017.9,2.3529]
[1742736962133,1.3328,2018.0,2017.9,2.3529]
[1742736962437,2.32405,2018.0,2017.9,2.3529]
[1742736962842,1.3328,2018.0,2017.9,2.3529]
[1742736963031,4.19897,2018.2,2017.9,1.3616]
[1742736963237,0.0074355,2018.3,2018.2,0.99116]
[1742736963433,0.0074355,2018.3,2018.2,4.19896]
[1742736963936,0.0074355,2018.3,2018.2,8.82176]
[1742736968933,0.0074355,2018.3,2018.2,5.60076]
[1742736969133,0.0074355,2018.3,2018.2,8.81676]
[1742736969950,0.0074355,2018.3,2018.2,4.6096]
[1742736970146,1.6953455,2018.3,2018.2,4.6096]
[1742736970442,1.6953455,2018.3,2018.2,5.60076]
[1742736970745,0.7042355,2018.3,2018.2,5.60076]
[1742736970948,2.0093355,2018.3,2018.2,5.60076]
[1742736971535,3.0004455,2018.3,2018.2,5.60076]
[1742736971739,3.0004455,2018.3,2018.2,4.6096]
[1742736972146,0.99117,2018.2,2018.0,2.94542]
[1742736972344,2.29627,2018.2,2018.0,2.94542]
[1742736972552,2.29627,2018.2,2018.1,2.2896]
[1742736972742,0.7042355,2018.3,2018.1,2.2896]
[1742736973044,1.6953755,2018.3,2018.1,2.2896]
[1742736973639,0.7042355,2018.3,2018.2,0.99116]
[1742736973839,0.7042355,2018.3,2018.2,2.37186]
[1742736974841,0.0074355,2018.3,2018.2,2.37186]
[1742736976547,0.0074355,2018.3,2018.2,5.57966]
[1742736977159,0.9985455,2018.3,2018.2,5.57966]
[1742736977339,1.6478455,2018.3,2018.2,5.57966]
[1742736977540,1.6478455,2018.3,2018.2,3.2078]
[1742736977849,0.9912,2018.1,2018.0,0.99122]
[1742736978052,4.85249,2018.2,2018.1,0.9912]
[1742736978251,4.85249,2018.2,2018.0,2.29442]
[1742736978445,4.85249,2018.2,2018.1,1.3032]
[1742736981060,0.99123,2018.1,2017.9,4.19907]
[1742736981253,0.99123,2018.1,2017.9,5.56617]
[1742736981650,0.99125,2018.0,2017.9,4.5749]
[1742736981858,3.8613,2018.2,2017.9,5.56617]
[1742736982064,0.9912,2018.1,2017.9,5.56617]
[1742736982357,4.85249,2018.2,2018.0,0.99125]
[1742736982561,4.85249,2018.2,2018.0,1.2666]
[1742736982751,4.85249,2018.2,2018.0,2.25782]
[1742736985257,3.8613,2018.2,2018.1,0.9912]
[1742736985458,3.8613,2018.2,2018.0,1.2666]
[1742736985459,0.9912,2018.1,2018.0,2.25782]
[1742736985659,4.85247,2018.2,2018.1,0.9912]
[1742736985963,4.85247,2018.2,2018.0,0.99122]
[1742736986361,4.8525,2018.2,2018.0,0.99122]
[1742736986658,4.8525,2018.2,2018.1,1.2804]
[1742736986858,0.99124,2018.1,2017.9,4.88177]
[1742736987061,0.99125,2018.0,2017.9,4.19907]
[1742736987667,0.99125,2018.0,2017.9,5.47947]
[1742736987963,0.99125,2018.0,2017.9,4.4882]
[1742736988164,1.68065,2018.0,2017.9,4.4882]
[1742736989268,1.68065,2018.0,2017.9,5.4795]
[1742736989958,0.6894,2018.0,2017.9,5.4795]
[1742736990153,0.6894,2018.0,2017.9,4.1991]
[1742736990362,7.05053,2018.0,2017.3,3.8481]
[1742736990665,7.05053,2018.0,2017.5,1.3152]
[1742736990666,6.4408,2017.9,2017.5,1.3152]
[1742736990867,0.99136,2017.8,2017.7,0.9914]
[1742736991066,1.3829,2017.8,2017.7,0.9914]
[1742736991270,5.61125,2017.8,2017.7,0.9914]
[1742736991454,5.61125,2017.8,2017.7,1.6677]
[1742736991866,5.61125,2017.8,2017.7,0.6763]
[1742736992165,0.99152,2017.5,2017.3,44.0078]
[1742736992368,0.99147,2017.6,2017.5,0.9915]
[1742736992564,4.22947,2017.6,2017.5,0.9915]
[1742736993066,4.22949,2017.6,2017.4,1.65482]
[1742736993263,1.3728,2017.5,2017.4,1.65482]
[1742736994357,2.3643,2017.5,2017.4,1.65482]
[1742736995066,2.3643,2017.5,2017.4,0.6633]
[1742736995470,1.3728,2017.5,2017.4,1.65485]
[1742736995670,2.3643,2017.5,2017.4,1.65485]
[1742736996265,1.3728,2017.5,2017.4,1.65485]
[1742736996467,3.2078,2017.9,2017.4,6.34998]
[1742736996774,4.6315,2017.7,2017.6,0.99145]
[1742736998275,5.6229,2017.7,2017.6,0.99145]
[1742736998576,2.3889,2017.7,2017.6,0.99145]
[1742737001081,2.38894,2017.7,2017.5,0.99148]
[1742737001286,1.3004,2017.6,2017.5,0.99148]
[1742737001775,2.29185,2017.6,2017.4,3.8711]
[1742737001977,2.29185,2017.6,2017.5,0.9915]
[1742737002176,0.9915,2017.5,2017.4,4.86263]
[1742737003579,0.9915,2017.5,2017.4,3.2078]
[1742737004071,0.9915,2017.5,2017.4,4.19935]
[1742737004278,0.9915,2017.5,2017.4,3.2078]
[1742737004478,0.9915,2017.5,2017.4,4.19935]
[1742737004677,0.9915,2017.5,2017.4,3.2078]
[1742737005072,0.6731,2017.7,2017.4,5.68668]
[1742737005272,6.4388,2017.9,2017.4,5.68668]
[1742737005474,6.4388,2017.9,2017.7,0.99136]
[1742737005475,0.99135,2017.8,2017.7,0.99136]
[1742737006269,0.99135,2017.8,2017.7,2.96366]
[1742737006472,7.43014,2017.9,2017.8,0.99135]
[1742737006672,7.43014,2017.9,2017.8,2.39025]
[1742737007181,48.2869,2018.2,2017.9,2.47826]
[1742737007182,3.2078,2018.2,2017.9,2.47826]
[1742737007482,0.9985655,2018.3,2018.2,0.99116]
[1742737007683,0.99117,2018.2,2018.1,0.99117]
[1742737007877,4.19897,2018.2,2018.1,2.39007]
[1742737009285,0.9912,2018.1,2018.0,0.6692]
[1742737009485,0.99132,2017.9,2017.8,0.99133]
[1742737009687,0.99132,2017.9,2017.8,2.39003]
[1742737010076,0.99125,2018.0,2017.8,2.39003]
[1742737010277,0.99125,2018.0,2017.9,1.3987]
[1742737010578,0.99135,2017.8,2017.7,2.31768]
[1742737011388,4.19914,2017.9,2017.8,0.99135]
[1742737011586,4.22728,2018.0,2017.9,0.9913]
[1742737012690,3.236,2018.0,2017.9,0.9913]
[1742737012878,3.236,2018.0,2017.8,2.39002]
[1742737013075,4.22729,2018.0,2017.9,0.9913]
[1742737013284,4.22729,2018.0,2017.9,2.3476]
[1742737013485,4.22729,2018.0,2017.9,1.3563]
[1742737014890,4.22729,2018.0,2017.9,2.3476]
[1742737015091,4.22729,2018.0,2017.9,1.3563]
[1742737015489,5.57119,2018.0,2017.9,1.3563]
[1742737016082,4.5799,2018.0,2017.9,2.3476]
[1742737016294,1.3439,2018.0,2017.9,2.3476]
[1742737018986,2.33515,2018.0,2017.9,1.3563]
[1742737019889,0.9913,2017.9,2017.8,0.99134]
[1742737020192,2.3504,2017.9,2017.8,2.29724]
[1742737020392,3.0321,2017.9,2017.8,2.29724]
[1742737020792,0.99135,2017.8,2017.7,5.52547]
[1742737020993,2.35045,2017.8,2017.7,5.52547]
[1742737021495,0.9914,2017.7,2017.6,1.3059]
[1742737021787,1.3591,2017.7,2017.6,2.29735]
[1742737022490,2.35052,2017.7,2017.5,0.99147]
[1742737023089,3.8873,2017.8,2017.6,2.32023]
[1742737023389,0.9914,2017.7,2017.5,0.99146]
[1742737024301,0.9915,2017.6,2017.4,0.99153]
[1742737024487,0.99152,2017.5,2017.3,5.51386]
[1742737024790,3.226,2017.7,2017.3,5.51386]
[1742737024991,0.99152,2017.5,2017.3,5.51386]
[1742737025495,3.226,2017.7,2017.3,5.51386]
[1742737025684,0.99155,2017.4,2017.3,4.5223]
[1742737025886,0.99155,2017.4,2017.3,5.5139]
[1742737026286,3.227,2017.5,2016.9,3.2078]
[1742737026486,0.99164,2017.3,2017.2,0.99165]
[1742737026683,0.99164,2017.3,2017.1,1.68526]
[1742737027795,0.99165,2017.2,2017.1,0.6936]
[1742737028493,0.99165,2017.2,2017.1,1.6853]
[1742737028697,0.99165,2017.2,2017.1,0.6936]
[1742737029195,0.9917,2017.1,2017.0,0.6896]
[1742737029795,0.9917,2017.1,2017.0,1.68135]
[1742737030197,3.2344355,2017.3,2017.0,0.6896]
[1742737030390,4.2260655,2017.3,2017.1,0.99167]
[1742737030593,0.99165,2017.2,2017.1,0.99167]
[1742737030890,0.99165,2017.2,2017.0,1.68131]
[1742737031300,3.2354355,2017.3,2017.0,1.68131]
[1742737031494,0.9917,2017.1,2017.0,1.68131]
[1742737031790,0.9917,2017.1,2017.0,0.6896]
[1742737032399,0.99168,2017.2,2017.0,1.68131]
[1742737032991,0.9917,2017.1,2017.0,0.6896]
[1742737033197,0.9917,2017.1,2017.0,1.68135]
[1742737033393,0.9917,2017.1,2017.0,0.6896]
[1742737034201,0.99175,2017.0,2016.9,42.45218]
[1742737034701,0.99175,2017.0,2016.9,41.4604]
[1742737034998,0.99179,2016.9,2016.8,0.6896]
[1742737035205,0.99184,2016.8,2016.7,0.99187]
[1742737035500,4.19964,2016.8,2016.7,41.79187]
[1742737035697,5.53754,2016.8,2016.7,42.1894]
[1742737035898,4.5457,2016.8,2016.7,2.38129]
[1742737036099,3.2078,2017.1,2016.7,1.3894]
[1742737036400,3.2078,2017.1,2016.6,6.97895]
[1742737036401,1.3379,2016.9,2016.8,2.38124]
[1742737036602,2.32969,2016.9,2016.8,2.38124]
[1742737038504,2.32969,2016.9,2016.8,1.3894]
[1742737042797,2.32969,2016.9,2016.6,2.28331]
[1742737042798,0.99189,2016.7,2016.6,2.28331]
[1742737043005,0.99189,2016.7,2016.6,1.2914]
[1742737043907,0.99204,2016.5,2016.3,0.99207]
[1742737044108,4.19984,2016.5,2016.4,2.0119]
[1742737044409,0.99204,2016.5,2016.4,2.0119]
[1742737045003,2.38024,2016.5,2016.4,2.0119]
[1742737045904,5.58804,2016.5,2016.4,2.0119]
[1742737046507,2.38024,2016.5,2016.4,2.0119]
[1742737047007,1.3882,2016.5,2016.4,3.00394]
[1742737047309,2.38019,2016.5,2016.4,3.00394]
[1742737047603,2.38019,2016.5,2016.4,2.0119]
[1742737047810,5.58799,2016.5,2016.4,1.3391]
[1742737048195,0.99209,2016.3,2016.2,42.0739]
[1742737048399,0.99209,2016.3,2016.2,1.2739]
[1742737049605,2.29449,2016.3,2016.2,2.6582]
[1742737051303,0.99219,2016.1,2016.0,40.8]
[1742737051497,0.99219,2016.1,2015.9,0.99227]
[1742737051710,0.99224,2016.0,2015.9,0.99227]
[1742737051898,0.99224,2016.0,2015.8,0.9923]
[1742737052411,0.99224,2016.0,2015.8,0.99234]
[1742737052616,0.99224,2016.0,2015.9,2.0127]
[1742737052809,2.31064,2016.0,2015.9,42.8127]
[1742737056999,2.31064,2016.0,2015.9,2.0127]
[1742737058100,1.3184,2016.0,2015.9,2.0127]
[1742737058303,3.2078,2016.1,2015.9,2.0127]
[1742737058607,0.99224,2016.0,2015.9,0.6945]
[1742737058803,2.27634,2016.0,2015.9,0.6945]
[1742737059205,1.2841,2016.0,2015.5,40.8]
[1742737059404,4.20018,2015.8,2015.6,1.65522]
[1742737059604,1.2841,2015.7,2015.6,1.65522]
[1742737060306,2.27648,2015.7,2015.6,0.6628]
[1742737063421,0.99248,2015.5,2015.3,1.65515]
[1742737063917,1.2672,2015.4,2015.3,1.65515]
[1742737064709,1.2672,2015.4,2015.3,2.30765]
[1742737065511,4.21147,2015.6,2015.3,1.3151]
[1742737065709,3.219,2015.6,2015.5,0.99248]
[1742737066410,4.5257,2015.6,2015.5,0.99248]
[1742737067422,5.51813,2015.6,2015.5,0.99248]
[1742737067719,4.5257,2015.6,2015.5,0.99248]
[1742737067914,1.3067,2015.6,2015.5,0.99248]
[1742737068911,4.20017,2015.8,2015.7,0.99238]
[1742737069221,7.41414,2015.8,2015.7,0.99238]
[1742737070219,7.41414,2015.8,2015.4,5.68912]
[1742737070423,1.3059,2015.7,2015.6,0.99242]
[1742737071413,2.29828,2015.7,2015.4,3.2078]
[1742737071614,2.29828,2015.7,2015.6,0.99243]
[1742737071814,4.20016,2015.8,2015.6,0.99243]
[1742737072016,4.20016,2015.8,2015.7,0.99238]
[1742737073119,4.20016,2015.8,2015.6,0.9924]
[1742737073419,4.20016,2015.8,2015.4,8.90113]
[1742737073726,4.20016,2015.8,2015.7,0.99238]
[1742737073919,4.20016,2015.8,2015.6,0.99239]
[1742737074221,5.68865,2015.8,2015.4,0.9925]
[1742737074519,0.99248,2015.6,2015.5,0.6735]
[1742737074725,4.20028,2015.6,2015.5,0.6735]
[1742737074920,3.8665,2015.8,2015.5,0.6735]
[1742737075220,4.20336,2015.8,2015.7,0.99238]
[1742737078427,3.211,2015.8,2015.7,0.99238]
[1742737078927,4.20334,2015.8,2015.7,0.99238]
[1742737081219,3.2078,2015.9,2015.8,0.99234]
[1742737081426,3.2078,2015.9,2015.6,3.84062]
[1742737081427,3.2078,2015.9,2015.7,0.99235]
[1742737081624,0.99237,2015.8,2015.7,2.28705]
[1742737083423,4.20012,2015.9,2015.8,0.99234]
[1742737083723,4.20012,2015.9,2015.8,2.26294]
[1742737084227,0.99221,2016.1,2015.8,1.2706]
[1742737084531,0.99221,2016.1,2016.0,0.99224]
[1742737084733,0.99224,2016.0,2015.9,2.26285]
[1742737086116,0.99224,2016.0,2015.9,1.2706]
[1742737088033,0.99224,2016.0,2015.9,2.26289]
[1742737088634,0.99224,2016.0,2015.9,1.2706]